[Event "*** MasterClass Titled Tuesday Blitz"]
[Site "Chess.com"]
[Date "2017.12.05"]
[Round "3"]
[White "ZalupiNputiN"]
[Black "NF31415926"]
[Result "0-1"]
[WhiteElo "2053"]
[BlackElo "2005"]
[TimeControl "180+2"]
[EndTime "14:51:01 PST"]
[Termination "NF31415926 won by resignation"]

1. e4 {[%clk 0:03:01.8]} 1... c5 {[%clk 0:03:00.2]} 2. Nf3 {[%clk 0:03:03]} 2...
Nc6 {[%clk 0:03:00.7]} 3. Bb5 {[%clk 0:03:03.5]} 3... d6 {[%clk 0:02:56.9]} 4.
Bxc6+ {[%clk 0:03:04.1]} 4... bxc6 {[%clk 0:02:58.8]} 5. h3 {[%clk 0:03:01]}
5... e5 {[%clk 0:02:57]} 6. Nc3 {[%clk 0:02:55.8]} 6... g6 {[%clk 0:02:50.6]} 7.
d3 {[%clk 0:02:54.7]} 7... Bg7 {[%clk 0:02:50.2]} 8. Ne2 {[%clk 0:02:54]} 8...
Ne7 {[%clk 0:02:49]} 9. g4 {[%clk 0:02:55.4]} 9... Bd7 {[%clk 0:02:42.7]} 10.
Ng3 {[%clk 0:02:55.2]} 10... Rb8 {[%clk 0:02:36.6]} 11. Rb1 {[%clk 0:02:53.3]}
11... a5 {[%clk 0:02:23.6]} 12. Be3 {[%clk 0:02:52.5]} 12... Qc7 {[%clk
0:02:18.3]} 13. Qd2 {[%clk 0:02:51.8]} 13... h6 {[%clk 0:02:00.3]} 14. c3 {[%clk
0:02:46.7]} 14... Bc8 {[%clk 0:01:45.1]} 15. O-O {[%clk 0:02:33.7]} 15... f5
{[%clk 0:01:32.5]} 16. exf5 {[%clk 0:02:28.4]} 16... gxf5 {[%clk 0:01:34.4]} 17.
gxf5 {[%clk 0:02:07.6]} 17... Nxf5 {[%clk 0:01:32.7]} 18. Nxf5 {[%clk
0:02:09.2]} 18... Bxf5 {[%clk 0:01:34.2]} 19. Kh2 {[%clk 0:02:05.5]} 19... d5
{[%clk 0:01:27.8]} 20. Nh4 {[%clk 0:02:04.3]} 20... Be6 {[%clk 0:01:12.2]} 21.
f4 {[%clk 0:02:00.2]} 21... Bf6 {[%clk 0:01:08.1]} 22. Qf2 {[%clk 0:01:24.8]}
22... d4 {[%clk 0:01:00.8]} 23. Bd2 {[%clk 0:01:12.1]} 23... Rg8 {[%clk
0:00:51.3]} 24. f5 {[%clk 0:01:04.6]} 24... Bxa2 {[%clk 0:00:49.5]} 25. Ng6
{[%clk 0:01:03.3]} 25... Bxb1 {[%clk 0:00:44.3]} 26. Rxb1 {[%clk 0:01:02.8]}
26... e4+ {[%clk 0:00:44.6]} 27. Bf4 {[%clk 0:01:04]} 27... Qb7 {[%clk
0:00:34.1]} 28. dxe4 {[%clk 0:01:00.7]} 28... Rd8 {[%clk 0:00:27.7]} 29. e5
{[%clk 0:01:01.6]} 29... Bg5 {[%clk 0:00:25]} 30. e6 {[%clk 0:00:53.1]} 30...
Rxg6 {[%clk 0:00:21.8]} 31. fxg6 {[%clk 0:00:51.9]} 31... Qg7 {[%clk 0:00:23.2]}
32. Bxg5 {[%clk 0:00:52.4]} 32... hxg5 {[%clk 0:00:23.9]} 33. Qf7+ {[%clk
0:00:52.1]} 33... Qxf7 {[%clk 0:00:23.6]} 34. exf7+ {[%clk 0:00:52.8]} 34... Kf8
{[%clk 0:00:24.5]} 35. Rd1 {[%clk 0:00:49.5]} 35... Kg7 {[%clk 0:00:23.6]} 36.
cxd4 {[%clk 0:00:49.1]} 36... cxd4 {[%clk 0:00:25.2]} 37. Rf1 {[%clk 0:00:39]}
37... Rf8 {[%clk 0:00:23.7]} 38. Kg3 {[%clk 0:00:39.5]} 38... Kxg6 {[%clk
0:00:24.6]} 39. Kg4 {[%clk 0:00:40.7]} 39... Rxf7 {[%clk 0:00:26]} 40. Rd1
{[%clk 0:00:39.2]} 40... Rd7 {[%clk 0:00:25.9]} 41. b3 {[%clk 0:00:37]} 41... c5
{[%clk 0:00:26.8]} 42. Rd3 {[%clk 0:00:37.6]} 42... Rd5 {[%clk 0:00:25.8]} 43.
Kg3 {[%clk 0:00:32]} 43... a4 {[%clk 0:00:26.6]} 44. bxa4 {[%clk 0:00:32.9]}
44... c4 {[%clk 0:00:27.5]} 45. Rd1 {[%clk 0:00:33.6]} 45... d3 {[%clk
0:00:27.8]} 46. Kf3 {[%clk 0:00:34.4]} 46... c3 {[%clk 0:00:28.7]} 47. Ke3
{[%clk 0:00:35.4]} 47... c2 {[%clk 0:00:29.4]} 48. Rg1 {[%clk 0:00:14.5]} 48...
d2 {[%clk 0:00:27.2]} 0-1

[Event "*** MasterClass Titled Tuesday Blitz"]
[Site "Chess.com"]
[Date "2017.12.05"]
[Round "3"]
[White "chidori_boruto"]
[Black "Alexander_Moskalenko"]
[Result "0-1"]
[WhiteElo "2535"]
[BlackElo "2747"]
[TimeControl "180+2"]
[EndTime "14:51:21 PST"]
[Termination "Alexander_Moskalenko won on time"]

1. d4 {[%clk 0:03:01.9]} 1... d5 {[%clk 0:03:00.7]} 2. Nf3 {[%clk 0:03:02.3]}
2... c6 {[%clk 0:03:02.6]} 3. c4 {[%clk 0:03:02.6]} 3... Nf6 {[%clk 0:03:04.5]}
4. cxd5 {[%clk 0:03:03.7]} 4... cxd5 {[%clk 0:03:04.2]} 5. Nc3 {[%clk
0:03:04.8]} 5... a6 {[%clk 0:03:03]} 6. Bf4 {[%clk 0:03:04.5]} 6... Nc6 {[%clk
0:02:59.9]} 7. e3 {[%clk 0:03:05.5]} 7... Bg4 {[%clk 0:02:56.5]} 8. Be2 {[%clk
0:03:05.5]} 8... e6 {[%clk 0:02:55.4]} 9. O-O {[%clk 0:03:06.1]} 9... Bd6 {[%clk
0:02:56]} 10. Bxd6 {[%clk 0:03:07.2]} 10... Qxd6 {[%clk 0:02:57.9]} 11. Rc1
{[%clk 0:03:07.8]} 11... O-O {[%clk 0:02:58.1]} 12. Na4 {[%clk 0:03:08.5]} 12...
Nd7 {[%clk 0:02:56.2]} 13. a3 {[%clk 0:03:05.7]} 13... Rfc8 {[%clk 0:02:56.8]}
14. Nc5 {[%clk 0:02:54.5]} 14... Nxc5 {[%clk 0:02:57.8]} 15. dxc5 {[%clk
0:02:50.9]} 15... Qe7 {[%clk 0:02:52.6]} 16. b4 {[%clk 0:02:49.8]} 16... a5
{[%clk 0:02:41.5]} 17. b5 {[%clk 0:02:13.6]} 17... Bxf3 {[%clk 0:02:42.1]} 18.
gxf3 {[%clk 0:02:07.8]} 18... Qg5+ {[%clk 0:02:15.3]} 19. Kh1 {[%clk 0:02:07.5]}
19... Ne7 {[%clk 0:02:17.2]} 20. f4 {[%clk 0:02:03.9]} 20... Qh4 {[%clk
0:02:18.4]} 21. Bf3 {[%clk 0:01:59.5]} 21... g6 {[%clk 0:02:19.3]} 22. Qd4
{[%clk 0:01:52.6]} 22... Rc7 {[%clk 0:02:20.7]} 23. Rc2 {[%clk 0:01:44.7]} 23...
Nf5 {[%clk 0:02:21.9]} 24. Qe5 {[%clk 0:01:43.7]} 24... Rac8 {[%clk 0:02:22]}
25. Rfc1 {[%clk 0:01:43.8]} 25... Qe7 {[%clk 0:02:15]} 26. c6 {[%clk 0:01:34.8]}
26... bxc6 {[%clk 0:02:15.5]} 27. b6 {[%clk 0:01:33.9]} 27... Rb7 {[%clk
0:02:13.2]} 28. Rxc6 {[%clk 0:01:34.7]} 28... Rxc6 {[%clk 0:02:00.5]} 29. Rxc6
{[%clk 0:01:36.6]} 29... Qd8 {[%clk 0:02:00.1]} 30. Qc3 {[%clk 0:01:20.7]} 30...
Ne7 {[%clk 0:02:00.2]} 31. Rc5 {[%clk 0:01:09.2]} 31... Rxb6 {[%clk 0:02:00.3]}
32. Qxa5 {[%clk 0:01:08.8]} 32... Rb1+ {[%clk 0:01:50.3]} 33. Kg2 {[%clk
0:01:09.2]} 33... Qxa5 {[%clk 0:01:52.2]} 34. Rxa5 {[%clk 0:01:10.1]} 34... Kg7
{[%clk 0:01:54.1]} 35. Ra7 {[%clk 0:01:04.4]} 35... Kf6 {[%clk 0:01:53.4]} 36.
Be2 {[%clk 0:01:00.1]} 36... Ra1 {[%clk 0:01:54]} 37. Bb5 {[%clk 0:01:00]} 37...
Ra2 {[%clk 0:01:52.4]} 38. Be8 {[%clk 0:00:58.2]} 38... Rb2 {[%clk 0:01:53.3]}
39. a4 {[%clk 0:00:58.6]} 39... Rb8 {[%clk 0:01:51.2]} 40. Bd7 {[%clk
0:00:59.6]} 40... Nf5 {[%clk 0:01:47]} 41. Ra6 {[%clk 0:00:55.8]} 41... h6
{[%clk 0:01:33.3]} 42. a5 {[%clk 0:00:51.1]} 42... Rb2 {[%clk 0:01:33.4]} 43.
Kf1 {[%clk 0:00:39.3]} 43... Ra2 {[%clk 0:01:34.7]} 44. Ra7 {[%clk 0:00:38.7]}
44... g5 {[%clk 0:01:33.1]} 45. fxg5+ {[%clk 0:00:38]} 45... hxg5 {[%clk
0:01:35]} 46. a6 {[%clk 0:00:39]} 46... Nd6 {[%clk 0:01:32]} 47. Bc6 {[%clk
0:00:33.7]} 47... Ke5 {[%clk 0:01:33.4]} 48. f3 {[%clk 0:00:27.7]} 48... f5
{[%clk 0:01:33.9]} 49. Ra8 {[%clk 0:00:25.8]} 49... Nc4 {[%clk 0:01:32.4]} 50.
e4 {[%clk 0:00:21.4]} 50... Nd2+ {[%clk 0:01:30.6]} 51. Ke2 {[%clk 0:00:20.6]}
51... Nxe4+ {[%clk 0:01:31.5]} 52. Kd1 {[%clk 0:00:21.9]} 52... Nd6 {[%clk
0:01:28.6]} 53. Kc1 {[%clk 0:00:20.5]} 53... Nc4 {[%clk 0:01:29.7]} 54. Kb1
{[%clk 0:00:20.6]} 54... Ra5 {[%clk 0:01:30.3]} 55. Bb7 {[%clk 0:00:20.6]} 55...
Nd6 {[%clk 0:01:29.6]} 56. Rg8 {[%clk 0:00:20.3]} 56... Nxb7 {[%clk 0:01:30]}
57. axb7 {[%clk 0:00:20]} 57... Rb5+ {[%clk 0:01:31.6]} 58. Kc2 {[%clk
0:00:21.6]} 58... Rxb7 {[%clk 0:01:33.5]} 59. Rxg5 {[%clk 0:00:22.9]} 59... Kf4
{[%clk 0:01:34.9]} 60. Rg6 {[%clk 0:00:24.2]} 60... e5 {[%clk 0:01:35.9]} 61.
Re6 {[%clk 0:00:24.9]} 61... Rh7 {[%clk 0:01:36.2]} 62. Kd3 {[%clk 0:00:23.3]}
62... e4+ {[%clk 0:01:37.2]} 63. fxe4 {[%clk 0:00:24.1]} 63... dxe4+ {[%clk
0:01:38.1]} 64. Kd4 {[%clk 0:00:25.2]} 64... Rxh2 {[%clk 0:01:38.5]} 65. Rf6
{[%clk 0:00:26.3]} 65... Rd2+ {[%clk 0:01:39.6]} 66. Kc3 {[%clk 0:00:27.4]}
66... Rd3+ {[%clk 0:01:41.5]} 67. Kc2 {[%clk 0:00:16.5]} 67... Rd5 {[%clk
0:01:35.3]} 0-1

[Event "*** MasterClass Titled Tuesday Blitz"]
[Site "Chess.com"]
[Date "2017.12.05"]
[Round "3"]
[White "lukas_111111"]
[Black "LawrenceTrent"]
[Result "0-1"]
[WhiteElo "2458"]
[BlackElo "2391"]
[TimeControl "180+2"]
[EndTime "14:51:22 PST"]
[Termination "LawrenceTrent won by resignation"]

1. e4 {[%clk 0:03:01.9]} 1... c5 {[%clk 0:03:00.5]} 2. Nf3 {[%clk 0:03:02.5]}
2... d6 {[%clk 0:03:01.4]} 3. d4 {[%clk 0:03:03.6]} 3... cxd4 {[%clk 0:03:02.9]}
4. Nxd4 {[%clk 0:03:05.2]} 4... Nf6 {[%clk 0:03:04.4]} 5. Nc3 {[%clk 0:03:06.8]}
5... g6 {[%clk 0:03:04.2]} 6. Be3 {[%clk 0:03:06.5]} 6... a6 {[%clk 0:03:05.1]}
7. f3 {[%clk 0:03:04.3]} 7... b5 {[%clk 0:03:01.5]} 8. a4 {[%clk 0:03:00.1]}
8... b4 {[%clk 0:03:01.4]} 9. Na2 {[%clk 0:03:00.8]} 9... e5 {[%clk 0:02:56.4]}
10. Nb3 {[%clk 0:03:00.3]} 10... Nc6 {[%clk 0:02:57.2]} 11. Qd2 {[%clk
0:02:54.1]} 11... d5 {[%clk 0:02:57]} 12. Bg5 {[%clk 0:02:44.8]} 12... d4 {[%clk
0:02:42.6]} 13. Bc4 {[%clk 0:02:44.4]} 13... Be7 {[%clk 0:02:40.3]} 14. Bh6
{[%clk 0:02:38.8]} 14... Be6 {[%clk 0:02:35.1]} 15. Bxe6 {[%clk 0:02:38.7]}
15... fxe6 {[%clk 0:02:37]} 16. Nac1 {[%clk 0:02:39.3]} 16... Na5 {[%clk
0:02:30.1]} 17. Nxa5 {[%clk 0:02:37.9]} 17... Qxa5 {[%clk 0:02:32]} 18. Nd3
{[%clk 0:02:25.4]} 18... Nd7 {[%clk 0:02:23.2]} 19. O-O {[%clk 0:02:13.6]} 19...
Qb6 {[%clk 0:02:11.9]} 20. Bg7 {[%clk 0:02:00.2]} 20... Rg8 {[%clk 0:02:09.8]}
21. Bxe5 {[%clk 0:02:00.6]} 21... Nxe5 {[%clk 0:02:08.8]} 22. Nxe5 {[%clk
0:02:01.2]} 22... Rc8 {[%clk 0:01:57.6]} 23. Nd3 {[%clk 0:01:51.1]} 23... a5
{[%clk 0:01:46.7]} 24. Rf2 {[%clk 0:01:43.9]} 24... b3 {[%clk 0:01:44]} 25. cxb3
{[%clk 0:01:37.7]} 25... Qxb3 {[%clk 0:01:44.1]} 26. Ne5 {[%clk 0:01:03.8]}
26... Bc5 {[%clk 0:01:25.1]} 27. Qd3 {[%clk 0:01:04.1]} 27... Qxd3 {[%clk
0:01:02.8]} 28. Nxd3 {[%clk 0:01:04.6]} 28... Bb6 {[%clk 0:01:04.3]} 29. Rff1
{[%clk 0:00:55.9]} 29... Kd7 {[%clk 0:01:02.3]} 30. Rac1 {[%clk 0:00:53.7]}
30... Kd6 {[%clk 0:01:03.2]} 31. Kf2 {[%clk 0:00:53.4]} 31... g5 {[%clk
0:01:01.9]} 32. Ke2 {[%clk 0:00:52]} 32... e5 {[%clk 0:00:59.8]} 33. Kd2 {[%clk
0:00:52.4]} 33... h5 {[%clk 0:01:00.6]} 34. b3 {[%clk 0:00:45.4]} 34... Bc5
{[%clk 0:00:29.3]} 35. Rc4 {[%clk 0:00:36.9]} 35... Bb4+ {[%clk 0:00:27.3]} 36.
Kc2 {[%clk 0:00:24.4]} 36... Rxc4+ {[%clk 0:00:27.3]} 37. bxc4 {[%clk
0:00:25.4]} 37... Rc8 {[%clk 0:00:28.9]} 38. Kb3 {[%clk 0:00:26.4]} 38... Rb8
{[%clk 0:00:30.4]} 39. Rb1 {[%clk 0:00:22.7]} 39... g4 {[%clk 0:00:21.3]} 40.
fxg4 {[%clk 0:00:23.2]} 40... hxg4 {[%clk 0:00:21.9]} 41. Rf1 {[%clk 0:00:24.3]}
41... Ke6 {[%clk 0:00:23.1]} 42. Rf5 {[%clk 0:00:24.1]} 42... Bd6+ {[%clk
0:00:23.2]} 43. Kc2 {[%clk 0:00:24.8]} 43... Rh8 {[%clk 0:00:24.9]} 44. Rg5
{[%clk 0:00:19.8]} 44... Rxh2 {[%clk 0:00:25.9]} 45. Rg6+ {[%clk 0:00:20.1]}
45... Kd7 {[%clk 0:00:26.6]} 46. Rxg4 {[%clk 0:00:20.6]} 46... Rh1 {[%clk
0:00:28.1]} 47. c5 {[%clk 0:00:21.1]} 47... Bc7 {[%clk 0:00:29.2]} 48. Rg7+
{[%clk 0:00:22.1]} 48... Kc6 {[%clk 0:00:30.3]} 49. Rg6+ {[%clk 0:00:23.5]}
49... Kb7 {[%clk 0:00:31.4]} 50. Kb3 {[%clk 0:00:23.4]} 50... Ra1 {[%clk
0:00:28.6]} 51. Kc4 {[%clk 0:00:21]} 51... Ra3 {[%clk 0:00:23.5]} 52. c6+ {[%clk
0:00:14.9]} 52... Kb6 {[%clk 0:00:24]} 53. Nc5 {[%clk 0:00:13.3]} 53... Rc3+
{[%clk 0:00:24.9]} 54. Kd5 {[%clk 0:00:13.7]} 54... Rxc5+ {[%clk 0:00:26.8]} 55.
Ke6 {[%clk 0:00:14.5]} 55... Rxc6+ {[%clk 0:00:28.3]} 0-1

[Event "*** MasterClass Titled Tuesday Blitz"]
[Site "Chess.com"]
[Date "2017.12.05"]
[Round "3"]
[White "temiksmozg"]
[Black "pKiLz5Rn9b"]
[Result "0-1"]
[WhiteElo "2489"]
[BlackElo "2640"]
[TimeControl "180+2"]
[EndTime "14:51:26 PST"]
[Termination "pKiLz5Rn9b won on time"]

1. d4 {[%clk 0:03:00.8]} 1... Nf6 {[%clk 0:03:00.2]} 2. c4 {[%clk 0:03:02.2]}
2... e6 {[%clk 0:03:00.7]} 3. Nf3 {[%clk 0:03:03.6]} 3... b6 {[%clk 0:03:01.1]}
4. g3 {[%clk 0:03:03.8]} 4... Bb7 {[%clk 0:03:02]} 5. Bg2 {[%clk 0:03:05.3]}
5... Bb4+ {[%clk 0:03:03]} 6. Bd2 {[%clk 0:03:04.8]} 6... c5 {[%clk 0:03:03.8]}
7. O-O {[%clk 0:03:01.4]} 7... O-O {[%clk 0:03:03.7]} 8. Bg5 {[%clk 0:02:41.6]}
8... cxd4 {[%clk 0:03:03.4]} 9. Qxd4 {[%clk 0:02:34.9]} 9... Nc6 {[%clk
0:03:04.1]} 10. Qh4 {[%clk 0:02:29.9]} 10... Be7 {[%clk 0:03:01.5]} 11. Nc3
{[%clk 0:02:18.8]} 11... h6 {[%clk 0:02:55.3]} 12. Bd2 {[%clk 0:02:08]} 12...
Rc8 {[%clk 0:02:38.5]} 13. b3 {[%clk 0:01:59.4]} 13... d5 {[%clk 0:02:31.8]} 14.
Rad1 {[%clk 0:01:33.5]} 14... Ne4 {[%clk 0:02:21]} 15. Qh5 {[%clk 0:01:33.7]}
15... Nxd2 {[%clk 0:02:20.1]} 16. Nxd2 {[%clk 0:01:33.2]} 16... d4 {[%clk
0:02:12.9]} 17. Nf3 {[%clk 0:01:18.4]} 17... Bc5 {[%clk 0:02:12.6]} 18. Ne4
{[%clk 0:01:14.4]} 18... f5 {[%clk 0:02:10]} 19. Nxc5 {[%clk 0:00:54.2]} 19...
bxc5 {[%clk 0:02:11.9]} 20. e3 {[%clk 0:00:55.6]} 20... Qa5 {[%clk 0:01:17.7]}
21. exd4 {[%clk 0:00:51.7]} 21... Nxd4 {[%clk 0:01:18.3]} 22. Nxd4 {[%clk
0:00:49]} 22... Bxg2 {[%clk 0:01:19.5]} 23. Nxe6 {[%clk 0:00:41.4]} 23... Bxf1
{[%clk 0:01:17.5]} 24. Nxf8 {[%clk 0:00:42.7]} 24... Rxf8 {[%clk 0:01:16]} 25.
Kxf1 {[%clk 0:00:39.4]} 25... Qxa2 {[%clk 0:01:17.3]} 26. Qf3 {[%clk 0:00:22.4]}
26... Rb8 {[%clk 0:01:17.8]} 27. Rd3 {[%clk 0:00:23.1]} 27... Rf8 {[%clk
0:01:05]} 28. Kg2 {[%clk 0:00:23.3]} 28... a5 {[%clk 0:00:59.2]} 29. Rd7 {[%clk
0:00:22.6]} 29... Qb1 {[%clk 0:00:38.4]} 30. Qd5+ {[%clk 0:00:19]} 30... Kh8
{[%clk 0:00:39.3]} 31. Qxc5 {[%clk 0:00:20]} 31... Qe4+ {[%clk 0:00:39]} 32. f3
{[%clk 0:00:20.8]} 32... Qc2+ {[%clk 0:00:39.2]} 33. Kh3 {[%clk 0:00:20.5]}
33... Rg8 {[%clk 0:00:39.2]} 34. Qe3 {[%clk 0:00:19]} 34... a4 {[%clk
0:00:33.5]} 35. bxa4 {[%clk 0:00:18.2]} 35... Qxc4 {[%clk 0:00:34.8]} 36. Qd3
{[%clk 0:00:06.3]} 36... Qxa4 {[%clk 0:00:24.5]} 37. Qxf5 {[%clk 0:00:06.9]}
37... Qc4 {[%clk 0:00:19.3]} 38. Qd3 {[%clk 0:00:03.1]} 38... Qe6+ {[%clk
0:00:20.4]} 39. Kg2 {[%clk 0:00:04.5]} 39... Qa2+ {[%clk 0:00:19.8]} 40. Kh3
{[%clk 0:00:04.5]} 40... Qe6+ {[%clk 0:00:20.5]} 41. g4 {[%clk 0:00:05.7]} 41...
Qf6 {[%clk 0:00:21.2]} 42. Rd6 {[%clk 0:00:06.1]} 42... Qf4 {[%clk 0:00:21.8]}
43. Rd4 {[%clk 0:00:07]} 43... Qf6 {[%clk 0:00:22.4]} 44. Rd6 {[%clk 0:00:06.1]}
44... Qf7 {[%clk 0:00:23.4]} 45. Kg3 {[%clk 0:00:06.2]} 45... Rf8 {[%clk
0:00:23.7]} 46. Qe4 {[%clk 0:00:06.7]} 46... Qa7 {[%clk 0:00:21.9]} 47. Rd1
{[%clk 0:00:05.6]} 47... Qb8+ {[%clk 0:00:20.4]} 48. Kh3 {[%clk 0:00:05]} 48...
Re8 {[%clk 0:00:21.9]} 49. Qd4 {[%clk 0:00:03.4]} 49... Qb7 {[%clk 0:00:22.3]}
50. Rd3 {[%clk 0:00:04.2]} 50... Qb1 {[%clk 0:00:21.2]} 0-1

[Event "*** MasterClass Titled Tuesday Blitz"]
[Site "Chess.com"]
[Date "2017.12.05"]
[Round "3"]
[White "dyziotomi99"]
[Black "ncdogan"]
[Result "0-1"]
[WhiteElo "2442"]
[BlackElo "2405"]
[TimeControl "180+2"]
[EndTime "14:51:27 PST"]
[Termination "ncdogan won by resignation"]

1. d4 {[%clk 0:02:59.4]} 1... Nf6 {[%clk 0:02:59]} 2. c4 {[%clk 0:03:00.1]} 2...
g6 {[%clk 0:03:00.5]} 3. Nc3 {[%clk 0:03:00.9]} 3... Bg7 {[%clk 0:03:02.4]} 4.
e4 {[%clk 0:03:02]} 4... d6 {[%clk 0:03:03.8]} 5. Nf3 {[%clk 0:03:03.4]} 5...
O-O {[%clk 0:03:05.3]} 6. Be2 {[%clk 0:03:04.6]} 6... e5 {[%clk 0:03:07]} 7. Be3
{[%clk 0:03:05.6]} 7... exd4 {[%clk 0:03:07.5]} 8. Nxd4 {[%clk 0:03:06.1]} 8...
Re8 {[%clk 0:03:09.4]} 9. f3 {[%clk 0:03:07.4]} 9... c6 {[%clk 0:03:10.4]} 10.
Qd2 {[%clk 0:03:08.6]} 10... d5 {[%clk 0:03:10.1]} 11. exd5 {[%clk 0:03:05.9]}
11... cxd5 {[%clk 0:03:12]} 12. c5 {[%clk 0:03:07.1]} 12... Nc6 {[%clk
0:03:13.3]} 13. Bf2 {[%clk 0:03:06]} 13... a6 {[%clk 0:03:09.3]} 14. O-O {[%clk
0:03:05.1]} 14... Nh5 {[%clk 0:03:06]} 15. a3 {[%clk 0:03:00.8]} 15... Be5
{[%clk 0:02:55.5]} 16. Rfe1 {[%clk 0:02:56.7]} 16... Nf4 {[%clk 0:02:38.6]} 17.
Bf1 {[%clk 0:02:34.7]} 17... Qg5 {[%clk 0:02:17.6]} 18. Kh1 {[%clk 0:02:35.1]}
18... Bd7 {[%clk 0:00:52.2]} 19. Nxc6 {[%clk 0:01:56.6]} 19... Bxc6 {[%clk
0:00:40.9]} 20. Rad1 {[%clk 0:01:21]} 20... Qh5 {[%clk 0:00:16.9]} 21. Bg3
{[%clk 0:01:07.2]} 21... g5 {[%clk 0:00:18]} 22. Ne2 {[%clk 0:00:49.4]} 22...
Ng6 {[%clk 0:00:12.5]} 23. Bxe5 {[%clk 0:00:47.3]} 23... Nxe5 {[%clk 0:00:14.4]}
24. Nd4 {[%clk 0:00:46.8]} 24... g4 {[%clk 0:00:11.3]} 25. f4 {[%clk 0:00:39.2]}
25... g3 {[%clk 0:00:11.3]} 26. h3 {[%clk 0:00:36.2]} 26... Ng4 {[%clk
0:00:12.1]} 27. Rxe8+ {[%clk 0:00:24.9]} 27... Rxe8 {[%clk 0:00:12.5]} 28. Re1
{[%clk 0:00:26.4]} 28... Rxe1 {[%clk 0:00:13]} 29. Qxe1 {[%clk 0:00:26.5]} 29...
Nf2+ {[%clk 0:00:14.1]} 30. Kg1 {[%clk 0:00:27.5]} 30... Qh4 {[%clk 0:00:15.3]}
31. Qe5 {[%clk 0:00:24.5]} 31... Ne4 {[%clk 0:00:14.2]} 32. Nf5 {[%clk
0:00:23.7]} 32... Qf6 {[%clk 0:00:14.5]} 33. Qxf6 {[%clk 0:00:19.9]} 33... Nxf6
{[%clk 0:00:15.2]} 34. Nxg3 {[%clk 0:00:21.5]} 34... d4 {[%clk 0:00:15.9]} 35.
Ne2 {[%clk 0:00:21.7]} 35... d3 {[%clk 0:00:15.5]} 36. Nc3 {[%clk 0:00:23.3]}
36... d2 {[%clk 0:00:16.5]} 37. Kf2 {[%clk 0:00:24.8]} 37... Ne4+ {[%clk
0:00:16.3]} 38. Ke2 {[%clk 0:00:22.7]} 38... Nxc3+ {[%clk 0:00:17.4]} 39. Kxd2
{[%clk 0:00:23.7]} 39... Ne4+ {[%clk 0:00:19]} 40. Ke3 {[%clk 0:00:25.1]} 40...
Nxc5 {[%clk 0:00:20.9]} 41. Kd4 {[%clk 0:00:26]} 41... Ne6+ {[%clk 0:00:21.7]}
42. Ke5 {[%clk 0:00:26.8]} 42... Kg7 {[%clk 0:00:23.2]} 43. f5 {[%clk
0:00:28.1]} 43... Nc5 {[%clk 0:00:24.4]} 44. b4 {[%clk 0:00:28.2]} 44... Ne4
{[%clk 0:00:24.4]} 45. Be2 {[%clk 0:00:28.1]} 45... Nc3 {[%clk 0:00:24.3]} 46.
Bf1 {[%clk 0:00:28]} 46... f6+ {[%clk 0:00:23.7]} 47. Kd6 {[%clk 0:00:28.8]}
47... Nb5+ {[%clk 0:00:25]} 48. Kc5 {[%clk 0:00:29]} 48... Nxa3 {[%clk 0:00:26]}
49. Bxa6 {[%clk 0:00:29.9]} 49... bxa6 {[%clk 0:00:25.6]} 50. Kxc6 {[%clk
0:00:31.3]} 50... Nc2 {[%clk 0:00:26.1]} 51. Kc5 {[%clk 0:00:31.5]} 51... Kh6
{[%clk 0:00:26.8]} 52. g4 {[%clk 0:00:30.4]} 52... Kg5 {[%clk 0:00:27.9]} 53.
Kc4 {[%clk 0:00:31.4]} 53... Kh4 {[%clk 0:00:28.8]} 54. Kc3 {[%clk 0:00:31.4]}
54... Na3 {[%clk 0:00:30]} 55. Kb3 {[%clk 0:00:31.1]} 55... Nb5 {[%clk
0:00:31.1]} 56. Kc4 {[%clk 0:00:32.6]} 56... Kxh3 {[%clk 0:00:32.3]} 57. g5
{[%clk 0:00:33.9]} 57... fxg5 {[%clk 0:00:32.6]} 58. f6 {[%clk 0:00:35.3]} 58...
Nd6+ {[%clk 0:00:33.4]} 59. Kd5 {[%clk 0:00:35.3]} 59... Nf7 {[%clk 0:00:33.9]}
60. Ke6 {[%clk 0:00:34]} 60... Nh6 {[%clk 0:00:35.1]} 0-1